fUST/lending_fUST_20250114
["ID","MTS","AMOUNT","RATE_DAILY","PERIOD"]
[348904809,1736868655531,-500.0,0.00023013,3]
[348904810,1736868655541,-850.61,0.00023013,3]
[348904811,1736868655551,-552.33,0.00023013,3]
[348904812,1736868655561,-500.0,0.00023013,3]
[348904813,1736868655572,-6280.18,0.00023013,3]
[348904814,1736868655582,-500.0,0.00023013,3]
[348904815,1736868655592,-513.5,0.00023013,3]
[348904816,1736868655602,-100056.4,0.00023013,3]
[348904817,1736868655611,-733.01,0.00023013,3]
[348904818,1736868655622,-1030.31,0.00023013,3]
[348904819,1736868655632,-500.0,0.00023013,3]
[348904820,1736868655642,-500.0,0.00023013,3]
[348904821,1736868655652,-795.65,0.00023013,3]
[348904822,1736868655662,-500.0,0.00023013,3]
[348904823,1736868655672,-807.22,0.00023013,3]
[348904824,1736868655682,-958.11,0.00023013,3]
[348904825,1736868655691,-511.75,0.00023013,3]
[348904826,1736868655703,-624.77,0.00023013,3]
[348904827,1736868655712,-594.49,0.00023013,3]
[348904828,1736868655722,-1126.39,0.00023013,3]
[348904829,1736868655732,-500.0,0.00023013,3]
[348904830,1736868655742,-500.0,0.00023013,3]
[348904831,1736868655752,-1354.68,0.00023013,3]
[348904832,1736868655762,-500.0,0.00023013,3]
[348904833,1736868655772,-670.2,0.00023013,3]
[348904834,1736868655782,-5829.81,0.00023013,3]
[348904835,1736868655791,-500.0,0.00023013,3]
[348904836,1736868655802,-861.16,0.00023013,3]
[348904837,1736868655811,-500.0,0.00023013,3]
[348904838,1736868655821,-500.0,0.00023013,3]
[348904839,1736868655831,-500.0,0.00023013,3]
[348904840,1736868655841,-15446.98,0.00023013,2]
[348904841,1736868655851,-231.62247366,0.00023013,3]
[348904842,1736868655861,-809.13,0.00023013,3]
[348904843,1736868655873,-500.0,0.00023013,3]
[348904844,1736868655883,-819.78,0.00023013,3]
[348904845,1736868655893,-2258.25,0.00023013,3]
[348904846,1736868655903,-2645.94,0.00023013,2]
[348904847,1736868655914,-500.0,0.00023013,3]
[348904848,1736868655924,-3943.85,0.00023013,3]
[348904849,1736868655934,-679.18,0.00023013,3]
[348904850,1736868655945,-28763.14,0.00023013,3]
[348904851,1736868655954,-174.90833228,0.00023013,3]
[348904852,1736868655964,-500.0,0.00023013,3]
[348904853,1736868655974,-500.0,0.00023013,3]
[348904854,1736868655983,-1183.34,0.00023013,3]
[348904855,1736868655994,-500.0,0.00023013,3]
[348904856,1736868656005,-627.75,0.00023013,3]
[348904857,1736868656015,-654.14,0.00023013,3]
[348904858,1736868656025,-500.0,0.00023013,3]
[348904859,1736868656034,-1551.26,0.00023013,3]
[348904860,1736868656046,-500.0,0.00023013,3]
[348904861,1736868656055,-500.0,0.00023013,3]
[348904862,1736868656066,-958.77,0.00023013,3]
[348904863,1736868656075,-500.0,0.00023013,3]
[348904864,1736868656085,-1475.28,0.00023013,3]
[348904865,1736868656095,-647.9,0.00023013,3]
[348904866,1736868656104,-581.2,0.00023013,3]
[348904867,1736868656116,-500.0,0.00023013,3]
[348904868,1736868656128,-1195.31,0.00023013,3]
[348904869,1736868656139,-500.0,0.00023013,3]
[348904870,1736868656150,-500.0,0.00023013,3]
[348904871,1736868656161,-500.0,0.00023013,3]
[348904872,1736868656171,-500.0,0.00023013,3]
[348904873,1736868656180,-2389.46,0.00023013,3]
[348904874,1736868656193,-636.07,0.00023013,3]
[348904875,1736868656202,-656.19,0.00023013,3]
[348904876,1736868656213,-500.0,0.00023013,3]
[348904877,1736868656224,-2727.96,0.00023013,3]
[348904878,1736868656234,-500.0,0.00023013,3]
[348904879,1736868656244,-1358.32,0.00023013,3]
[348904880,1736868656254,-500.0,0.00023013,3]
[348904881,1736868656263,-1127.51,0.00023013,3]
[348904882,1736868656273,-1623.19,0.00023013,3]
[348904883,1736868656284,-500.0,0.00023013,3]
[348904884,1736868656294,-500.0,0.00023013,3]
[348904885,1736868656303,-1291.14,0.00023013,3]
[348904886,1736868656313,-964.02616037,0.0002307,2]
[348904887,1736868656322,-211.01606803,0.00023072,2]
[348904888,1736868656332,-211.01606803,0.00023141,2]
[348904889,1736868656341,-500.0,0.0002315,3]
[348904890,1736868656351,-500.0,0.0002315,3]
[348904891,1736868656361,-500.0,0.0002315,3]
[348904892,1736868656372,-500.0,0.0002315,3]
[348904893,1736868656382,-500.0,0.0002315,3]
[348904894,1736868656392,-500.0,0.0002315,3]
[348904895,1736868656402,-500.0,0.0002315,3]
[348904896,1736868656412,-500.0,0.0002315,3]
[348904897,1736868656422,-500.0,0.0002315,3]
[348904898,1736868656431,-554.6,0.0002315,3]
[348904899,1736868656441,-3932.12,0.0002315,3]
[348904900,1736868656451,-645.48,0.0002315,3]
[348904901,1736868656461,-1202.4,0.0002315,3]
[348904902,1736868656470,-779.88,0.0002315,3]
[348904903,1736868656480,-612.07,0.0002315,3]
[348904904,1736868656489,-500.0,0.0002315,3]
[348904905,1736868656499,-500.0,0.0002315,3]
[348904906,1736868656509,-793.51,0.0002315,3]
[348904907,1736868656519,-546.51,0.0002315,3]
[348904908,1736868656529,-571.65,0.0002315,3]
[348904909,1736868656538,-534.63,0.0002315,3]
[348904910,1736868656548,-2630.07,0.0002315,3]
[348904911,1736868656558,-254.21123916,0.0002315,3]
[348904912,1736868656568,-615.92,0.0002315,3]
[348904913,1736868656578,-500.0,0.0002315,3]
[348904914,1736868656588,-500.0,0.0002315,3]
[348904915,1736868656598,-500.0,0.0002315,3]
[348904916,1736868656608,-594.29409775,0.0002315,3]
[348904917,1736868656620,-572.53,0.0002315,3]
[348904918,1736868656630,-500.0,0.0002315,3]
[348904919,1736868656640,-1372.86,0.0002315,3]
[348904920,1736868656651,-500.0,0.0002315,3]
[348904921,1736868656662,-500.0,0.0002315,3]
[348904922,1736868656672,-850.61,0.0002315,3]
[348904923,1736868656817,-552.33,0.0002315,3]
[348904924,1736868656827,-500.0,0.0002315,3]
[348904925,1736868656837,-6280.18,0.0002315,3]
[348904926,1736868656847,-500.0,0.0002315,3]
[348904927,1736868656857,-513.5,0.0002315,3]
[348904928,1736868656871,-100056.4,0.0002315,3]
[348904929,1736868656881,-733.01,0.0002315,3]
[348904930,1736868656891,-1030.31,0.0002315,3]
[348904931,1736868656901,-500.0,0.0002315,3]
[348904932,1736868656910,-500.0,0.0002315,3]
[348904933,1736868656920,-795.65,0.0002315,3]
[348904934,1736868656930,-500.0,0.0002315,3]
[348904935,1736868656939,-807.22,0.0002315,3]
[348904936,1736868656950,-958.11,0.0002315,3]
[348904937,1736868656960,-511.75,0.0002315,3]
[348904938,1736868656969,-624.77,0.0002315,3]
[348904939,1736868656979,-594.49,0.0002315,3]
[348904940,1736868656989,-1126.39,0.0002315,3]
[348904941,1736868656999,-446.55758655,0.0002315,3]
[348904942,1736868657009,-500.0,0.0002315,3]
[348904943,1736868657018,-1354.68,0.0002315,3]
[348904944,1736868657028,-500.0,0.0002315,3]
[348904945,1736868657037,-670.2,0.0002315,3]
[348904946,1736868657047,-500.0,0.0002315,3]
[348904947,1736868657056,-861.16,0.0002315,3]
[348904948,1736868657066,-5829.81,0.0002315,3]
[348904949,1736868657075,-500.0,0.0002315,3]
[348904950,1736868657085,-500.0,0.0002315,3]
[348904951,1736868657094,-199.34233988,0.0002315,3]
[348904952,1736868657104,-500.0,0.0002315,3]
[348904953,1736868657113,-15446.98,0.0002315,2]
[348904954,1736868657126,-809.13,0.0002315,3]
[348904955,1736868657136,-500.0,0.0002315,3]
[348904956,1736868657146,-819.78,0.0002315,3]
[348904957,1736868657156,-2258.25,0.0002315,3]
[348904958,1736868657166,-2645.94,0.0002315,2]
[348904959,1736868657176,-500.0,0.0002315,3]
[348904960,1736868657185,-3943.85,0.0002315,3]
[348904961,1736868657195,-679.18,0.0002315,3]
[348904962,1736868657206,-28763.14,0.0002315,3]
[348904963,1736868657216,-500.0,0.0002315,3]
[348904964,1736868657225,-500.0,0.0002315,3]
[348904965,1736868657235,-1183.34,0.0002315,3]
[348904966,1736868657244,-500.0,0.0002315,3]
[348904967,1736868657254,-627.75,0.0002315,3]
[348904968,1736868657264,-654.14,0.0002315,3]
[348904969,1736868657273,-500.0,0.0002315,3]
[348904970,1736868657283,-1551.26,0.0002315,3]
[348904971,1736868657293,-500.0,0.0002315,3]
[348904972,1736868657302,-500.0,0.0002315,3]
[348904973,1736868657314,-958.77,0.0002315,3]
[348904974,1736868657324,-500.0,0.0002315,3]
[348904975,1736868657333,-1475.28,0.0002315,3]
[348904976,1736868657343,-647.9,0.0002315,3]
[348904977,1736868657352,-500.0,0.0002315,3]
[348904978,1736868657362,-1195.31,0.0002315,3]
[348904979,1736868657373,-581.2,0.0002315,3]
[348904980,1736868657382,-500.0,0.0002315,3]
[348904981,1736868657392,-500.0,0.0002315,3]
[348904982,1736868657403,-500.0,0.0002315,3]
[348904983,1736868657412,-500.0,0.0002315,3]
[348904984,1736868657423,-2389.46,0.0002315,3]
[348904985,1736868657433,-636.07,0.0002315,3]
[348904986,1736868657443,-656.19,0.0002315,3]
[348904987,1736868657453,-500.0,0.0002315,3]
[348904988,1736868657463,-2727.96,0.0002315,3]
[348904989,1736868657472,-500.0,0.0002315,3]
[348904990,1736868657482,-1358.32,0.0002315,3]
[348904991,1736868657491,-500.0,0.0002315,3]
[348904992,1736868657500,-1127.51,0.0002315,3]
[348904993,1736868657510,-1623.19,0.0002315,3]
[348904994,1736868657520,-500.0,0.0002315,3]
[348904995,1736868657530,-500.0,0.0002315,3]
[348904996,1736868657542,-1291.14,0.0002315,3]
[348904997,1736868657552,-3000.0,0.00023187,2]
[348904998,1736868657561,-211.01606803,0.0002321,2]
[348904999,1736868657572,-211.01606803,0.00023279,2]
[348905000,1736868657581,-489901.05675641,0.0002328,2]
[348905001,1736868657591,-500.0,0.00023287,3]
[348905002,1736868657601,-230.37388877,0.00023287,3]
[348905003,1736868657610,-500.0,0.00023287,3]
[348905004,1736868657621,-500.0,0.00023287,3]
[348905005,1736868657630,-500.0,0.00023287,3]
[348905006,1736868657639,-500.0,0.00023287,3]
[348905007,1736868657649,-500.0,0.00023287,3]
[348905008,1736868657658,-518.47101255,0.00023287,3]
[348905009,1736868657668,-500.0,0.00023287,3]
[348905010,1736868657678,-500.0,0.00023287,3]
[348905011,1736868657688,-500.0,0.00023287,3]
[348905012,1736868657698,-554.6,0.00023287,3]
[348905013,1736868657707,-3932.12,0.00023287,3]
[348905014,1736868657717,-645.48,0.00023287,3]
[348905015,1736868657727,-1202.4,0.00023287,3]
[348905016,1736868657736,-779.88,0.00023287,3]
[348905017,1736868657746,-612.07,0.00023287,3]
[348905018,1736868657756,-500.0,0.00023287,3]
[348905019,1736868657765,-500.0,0.00023287,3]
[348905020,1736868657775,-793.51,0.00023287,3]
[348905021,1736868657785,-546.51,0.00023287,3]
[348905022,1736868657795,-571.65,0.00023287,3]
[348905023,1736868657804,-534.63,0.00023287,3]
[348905024,1736868657814,-2630.07,0.00023287,3]
[348905025,1736868657825,-615.92,0.00023287,3]
[348905026,1736868657834,-500.0,0.00023287,3]
[348905027,1736868657844,-500.0,0.00023287,3]
[348905028,1736868657853,-500.0,0.00023287,3]
[348905029,1736868657863,-572.53,0.00023287,3]
[348905030,1736868657874,-500.0,0.00023287,3]
[348905031,1736868657883,-1372.86,0.00023287,3]
[348905032,1736868657893,-500.0,0.00023287,3]
[348905033,1736868657903,-500.0,0.00023287,3]
[348905034,1736868657913,-850.61,0.00023287,3]
[348905035,1736868657922,-552.33,0.00023287,3]
[348905036,1736868657932,-500.0,0.00023287,3]
[348905037,1736868657942,-6280.18,0.00023287,3]
[348905038,1736868657952,-500.0,0.00023287,3]
[348905039,1736868657962,-513.5,0.00023287,3]
[348905040,1736868657972,-100056.4,0.00023287,3]
[348905041,1736868657982,-733.01,0.00023287,3]
[348905042,1736868657992,-1030.31,0.00023287,3]
[348905043,1736868658002,-500.0,0.00023287,3]
[348905044,1736868658011,-520.70896133,0.00023287,3]
[348905045,1736868658020,-795.65,0.00023287,3]
[348905046,1736868658029,-500.0,0.00023287,3]
[348905047,1736868658039,-807.22,0.00023287,3]
[348905048,1736868658049,-958.11,0.00023287,3]
[348905049,1736868658059,-511.75,0.00023287,3]
[348905050,1736868658069,-624.77,0.00023287,3]
[348905051,1736868658079,-594.49,0.00023287,3]
[348905052,1736868658089,-1126.39,0.00023287,3]
[348905053,1736868658099,-500.0,0.00023287,3]
[348905054,1736868658108,-1354.68,0.00023287,3]
[348905055,1736868658123,-500.0,0.00023287,3]
[348905056,1736868658134,-670.2,0.00023287,3]
[348905057,1736868658144,-500.0,0.00023287,3]
[348905058,1736868658153,-861.16,0.00023287,3]
[348905059,1736868658164,-5829.81,0.00023287,3]
[348905060,1736868658175,-500.0,0.00023287,3]
[348905061,1736868658184,-441.55414942,0.00023287,3]
[348905062,1736868658195,-500.0,0.00023287,3]
[348905063,1736868658205,-15446.98,0.00023287,2]
[348905064,1736868658215,-809.13,0.00023287,3]
[348905065,1736868658225,-500.0,0.00023287,3]
[348905066,1736868658235,-819.78,0.00023287,3]
[348905067,1736868658245,-2258.25,0.00023287,3]
[348905068,1736868658254,-2645.94,0.00023287,2]
[348905069,1736868658263,-500.0,0.00023287,3]
[348905070,1736868658273,-3943.85,0.00023287,3]
[348905071,1736868658282,-679.18,0.00023287,3]
[348905072,1736868658292,-28763.14,0.00023287,3]
[348905073,1736868658301,-198.80058007,0.00023287,3]
[348905074,1736868658311,-500.0,0.00023287,3]
[348905075,1736868658320,-1183.34,0.00023287,3]
[348905076,1736868658330,-500.0,0.00023287,3]
[348905077,1736868658339,-627.75,0.00023287,3]
[348905078,1736868658349,-654.14,0.00023287,3]
[348905079,1736868658359,-178.80688574,0.00023287,3]
[348905080,1736868658370,-1551.26,0.00023287,3]
[348905081,1736868658380,-500.0,0.00023287,3]
[348905082,1736868658390,-500.0,0.00023287,3]
[348905083,1736868658400,-958.77,0.00023287,3]
[348905084,1736868658410,-500.0,0.00023287,3]
[348905085,1736868658420,-1475.28,0.00023287,3]
[348905086,1736868658430,-647.9,0.00023287,3]
[348905087,1736868658440,-500.0,0.00023287,3]
[348905088,1736868658450,-1195.31,0.00023287,3]
[348905089,1736868658459,-581.2,0.00023287,3]
[348905090,1736868658469,-500.0,0.00023287,3]
[348905091,1736868658479,-500.0,0.00023287,3]
[348905092,1736868658491,-500.0,0.00023287,3]
[348905093,1736868658500,-500.0,0.00023287,3]
[348905094,1736868658511,-2389.46,0.00023287,3]
[348905095,1736868658521,-636.07,0.00023287,3]
[348905096,1736868658531,-500.0,0.00023287,3]
[348905097,1736868658542,-656.19,0.00023287,3]
[348905098,1736868658552,-2727.96,0.00023287,3]
[348905099,1736868658562,-500.0,0.00023287,3]
[348905100,1736868658575,-1358.32,0.00023287,3]
[348905101,1736868658584,-500.0,0.00023287,3]
[348905102,1736868658595,-1127.51,0.00023287,3]
[348905103,1736868658604,-1623.19,0.00023287,3]
[348905104,1736868658616,-500.0,0.00023287,3]
[348905105,1736868658625,-500.0,0.00023287,3]
[348905106,1736868658635,-1291.14,0.00023287,3]
[348905107,1736868658644,-155.0,0.00023311,2]
[348905108,1736868658653,-155.0,0.00023311,2]
[348905109,1736868658664,-964.02616037,0.00023321,2]
[348905110,1736868658673,-7457.18955995,0.00023334,2]
[348905111,1736868658683,-211.01606803,0.00023348,2]
[348905112,1736868658693,-11776.58238736,0.00023393,2]
[348905113,1736868658703,-160.0,0.000234,3]
[348905114,1736868658712,-307.38952812,0.000234,5]
[348905115,1736868658722,-499.8,0.00023413,2]
[348905116,1736868658731,-211.01606803,0.00023417,2]
[348905117,1736868658740,-500.0,0.00023424,3]
[348905118,1736868658750,-500.0,0.00023424,3]
[348905119,1736868658759,-500.0,0.00023424,3]
[348905120,1736868658768,-500.0,0.00023424,3]
[348905121,1736868658778,-500.0,0.00023424,3]
[348905122,1736868658787,-500.0,0.00023424,3]
[348905123,1736868658797,-500.0,0.00023424,3]
[348905124,1736868658806,-500.0,0.00023424,3]
[348905125,1736868658815,-554.6,0.00023424,3]
[348905126,1736868658825,-645.48,0.00023424,3]
[348905127,1736868658835,-1202.4,0.00023424,3]
[348905128,1736868658844,-779.88,0.00023424,3]
[348905129,1736868658854,-612.07,0.00023424,3]
[348905130,1736868658864,-500.0,0.00023424,3]
[348905131,1736868658873,-500.0,0.00023424,3]
[348905132,1736868658883,-793.51,0.00023424,3]
[348905133,1736868658892,-546.51,0.00023424,3]
[348905134,1736868658901,-571.65,0.00023424,3]
[348905135,1736868658911,-534.63,0.00023424,3]
[348905136,1736868658921,-2630.07,0.00023424,3]
[348905137,1736868658931,-615.92,0.00023424,3]
[348905138,1736868658940,-519.31642483,0.00023424,3]
[348905139,1736868658950,-500.0,0.00023424,3]
[348905140,1736868658959,-500.0,0.00023424,3]
[348905141,1736868658968,-572.53,0.00023424,3]
[348905142,1736868658978,-500.0,0.00023424,3]
[348905143,1736868658987,-1372.86,0.00023424,3]
[348905144,1736868658997,-500.0,0.00023424,3]
[348905145,1736868659006,-500.0,0.00023424,3]
[348905146,1736868659015,-850.61,0.00023424,3]
[348905147,1736868659025,-552.33,0.00023424,3]
[348905148,1736868659034,-500.0,0.00023424,3]
[348905149,1736868659044,-6280.18,0.00023424,3]
[348905150,1736868659053,-500.0,0.00023424,3]
[348905151,1736868659063,-513.5,0.00023424,3]
[348905152,1736868659072,-733.01,0.00023424,3]
[348905153,1736868659083,-100056.4,0.00023424,3]
[348905154,1736868659093,-1030.31,0.00023424,3]
[348905155,1736868659103,-500.0,0.00023424,3]
[348905156,1736868659112,-795.65,0.00023424,3]
[348905157,1736868659125,-500.0,0.00023424,3]
[348905158,1736868659135,-807.22,0.00023424,3]
[348905159,1736868659144,-958.11,0.00023424,3]
[348905160,1736868659154,-511.75,0.00023424,3]
[348905161,1736868659164,-624.77,0.00023424,3]
[348905162,1736868659173,-594.49,0.00023424,3]
[348905163,1736868659182,-1126.39,0.00023424,3]
[348905164,1736868659191,-500.0,0.00023424,3]
[348905165,1736868659201,-1354.68,0.00023424,3]
[348905166,1736868659212,-670.2,0.00023424,3]
[348905167,1736868659222,-500.0,0.00023424,3]
[348905168,1736868659231,-500.0,0.00023424,3]
[348905169,1736868659240,-861.16,0.00023424,3]
[348905170,1736868659250,-5829.81,0.00023424,3]
[348905171,1736868659259,-500.0,0.00023424,3]
[348905172,1736868659269,-500.0,0.00023424,3]
[348905173,1736868659279,-15446.98,0.00023424,2]
[348905174,1736868659288,-809.13,0.00023424,3]
[348905175,1736868659298,-500.0,0.00023424,3]
[348905176,1736868659307,-819.78,0.00023424,3]
[348905177,1736868659317,-2258.25,0.00023424,3]
[348905178,1736868659328,-2645.94,0.00023424,2]
[348905179,1736868659337,-619.01699712,0.00023424,3]
[348905180,1736868659347,-3943.85,0.00023424,3]
[348905181,1736868659356,-679.18,0.00023424,3]
[348905182,1736868659369,-28763.14,0.00023424,3]
[348905183,1736868659378,-500.0,0.00023424,3]
[348905184,1736868659389,-1183.34,0.00023424,3]
[348905185,1736868659400,-500.0,0.00023424,3]
[348905186,1736868659409,-627.75,0.00023424,3]
[348905187,1736868659419,-654.14,0.00023424,3]
[348905188,1736868659429,-1551.26,0.00023424,3]
[348905189,1736868659439,-500.0,0.00023424,3]
[348905190,1736868659449,-353.86688602,0.00023424,3]
[348905191,1736868659458,-958.77,0.00023424,3]
[348905192,1736868659467,-500.0,0.00023424,3]
[348905193,1736868659477,-1475.28,0.00023424,3]
[348905194,1736868659487,-647.9,0.00023424,3]
[348905195,1736868659496,-500.0,0.00023424,3]
[348905196,1736868659506,-1195.31,0.00023424,3]
[348905197,1736868659516,-581.2,0.00023424,3]
[348905198,1736868659525,-500.0,0.00023424,3]
[348905199,1736868659535,-500.0,0.00023424,3]
[348905200,1736868659546,-500.0,0.00023424,3]
[348905201,1736868659556,-500.0,0.00023424,3]
[348905202,1736868659566,-2389.46,0.00023424,3]
[348905203,1736868659576,-636.07,0.00023424,3]
[348905204,1736868659586,-500.0,0.00023424,3]
[348905205,1736868659596,-656.19,0.00023424,3]
[348905206,1736868659606,-2727.96,0.00023424,3]
[348905207,1736868659619,-500.0,0.00023424,3]
[348905208,1736868659629,-1358.32,0.00023424,3]
[348905209,1736868659639,-425.38528458,0.00023424,3]
[348905210,1736868659649,-1127.51,0.00023424,3]
[348905211,1736868659658,-1623.19,0.00023424,3]
[348905212,1736868659668,-500.0,0.00023424,3]
[348905213,1736868659678,-500.0,0.00023424,3]
[348905214,1736868659687,-1291.14,0.00023424,3]
[348905215,1736868659697,-211.01606803,0.00023486,2]
[348905216,1736868659706,-9738.38231836,0.000235,2]
[348905217,1736868659716,-1224.779161,0.000235,3]
[348905218,1736868659725,-1000.0,0.00023521,2]
[348905219,1736868659735,-1125.38033994,0.00023521,2]
[348905220,1736868659745,-306.93603945,0.00023521,2]
[348905221,1736868659755,-175.08436762,0.00023521,2]
[348905222,1736868659764,-500.0,0.00023521,2]
[348905223,1736868659773,-1500.0,0.00023522,2]
[348905224,1736868659783,-211.01606803,0.00023555,2]
[348905225,1736868659793,-587.0,0.0002356,2]
[348905226,1736868659803,-912.80149224,0.00023561,3]
[348905227,1736868659813,-500.0,0.00023561,3]
[348905228,1736868659823,-353.42085061,0.00023561,3]
[348905229,1736868659832,-500.0,0.00023561,3]
[348905230,1736868659841,-500.0,0.00023561,3]
[348905231,1736868659851,-500.0,0.00023561,3]
[348905232,1736868659861,-500.0,0.00023561,3]
[348905233,1736868659872,-500.0,0.00023561,3]
[348905234,1736868659882,-500.0,0.00023561,3]
[348905235,1736868659892,-554.6,0.00023561,3]
[348905236,1736868659902,-645.48,0.00023561,3]
[348905237,1736868659911,-1202.4,0.00023561,3]
[348905238,1736868659921,-779.88,0.00023561,3]
[348905239,1736868660067,-612.07,0.00023561,3]
[348905240,1736868660078,-500.0,0.00023561,3]
[348905241,1736868660088,-500.0,0.00023561,3]
[348905242,1736868660098,-793.51,0.00023561,3]
[348905243,1736868660107,-546.51,0.00023561,3]
[348905244,1736868660120,-571.65,0.00023561,3]
[348905245,1736868660130,-534.63,0.00023561,3]
[348905246,1736868660140,-2630.07,0.00023561,3]
[348905247,1736868660150,-615.92,0.00023561,3]
[348905248,1736868660160,-500.0,0.00023561,3]
[348905249,1736868660170,-500.0,0.00023561,3]
[348905250,1736868660180,-572.53,0.00023561,3]
[348905251,1736868660189,-500.0,0.00023561,3]
[348905252,1736868660202,-1372.86,0.00023561,3]
[348905253,1736868660211,-500.0,0.00023561,3]
[348905254,1736868660222,-500.0,0.00023561,3]
[348905255,1736868660231,-850.61,0.00023561,3]
[348905256,1736868660241,-552.33,0.00023561,3]
[348905257,1736868660251,-500.0,0.00023561,3]
[348905258,1736868660260,-6280.18,0.00023561,3]
[348905259,1736868660269,-617.73632029,0.00023561,3]
[348905260,1736868660279,-513.5,0.00023561,3]
[348905261,1736868660289,-733.01,0.00023561,3]
[348905262,1736868660299,-100056.4,0.00023561,3]
[348905263,1736868660309,-1030.31,0.00023561,3]
[348905264,1736868660319,-500.0,0.00023561,3]
[348905265,1736868660329,-795.65,0.00023561,3]
[348905266,1736868660338,-500.0,0.00023561,3]
[348905267,1736868660348,-807.22,0.00023561,3]
[348905268,1736868660358,-958.11,0.00023561,3]
[348905269,1736868660368,-511.75,0.00023561,3]
[348905270,1736868660378,-624.77,0.00023561,3]
[348905271,1736868660390,-594.49,0.00023561,3]
[348905272,1736868660399,-1126.39,0.00023561,3]
[348905273,1736868660409,-500.0,0.00023561,3]
[348905274,1736868660419,-1354.68,0.00023561,3]
[348905275,1736868660430,-670.2,0.00023561,3]
[348905276,1736868660440,-500.0,0.00023561,3]
[348905277,1736868660449,-500.0,0.00023561,3]
[348905278,1736868660459,-861.16,0.00023561,3]
[348905279,1736868660468,-500.0,0.00023561,3]
[348905280,1736868660478,-5829.81,0.00023561,3]
[348905281,1736868660487,-500.0,0.00023561,3]
[348905282,1736868660498,-15446.98,0.00023561,2]
[348905283,1736868660507,-809.13,0.00023561,3]
[348905284,1736868660518,-500.0,0.00023561,3]
[348905285,1736868660528,-819.78,0.00023561,3]
[348905286,1736868660538,-2258.25,0.00023561,3]
[348905287,1736868660548,-2645.94,0.00023561,2]
[348905288,1736868660558,-3943.85,0.00023561,3]
[348905289,1736868660568,-679.18,0.00023561,3]
[348905290,1736868660578,-28763.14,0.00023561,3]
[348905291,1736868660588,-500.0,0.00023561,3]
[348905292,1736868660598,-1183.34,0.00023561,3]
[348905293,1736868660608,-500.0,0.00023561,3]
[348905294,1736868660622,-627.75,0.00023561,3]
[348905295,1736868660632,-654.14,0.00023561,3]
[348905296,1736868660642,-1551.26,0.00023561,3]
[348905297,1736868660652,-500.0,0.00023561,3]
[348905298,1736868660663,-958.77,0.00023561,3]
[348905299,1736868660673,-1475.28,0.00023561,3]
[348905300,1736868660694,-500.0,0.00023561,3]
[348905301,1736868660706,-647.9,0.00023561,3]
[348905302,1736868660718,-500.0,0.00023561,3]
[348905303,1736868660730,-1195.31,0.00023561,3]
[348905304,1736868660741,-581.2,0.00023561,3]
[348905305,1736868660751,-500.0,0.00023561,3]
[348905306,1736868660762,-500.0,0.00023561,3]
[348905307,1736868660772,-500.0,0.00023561,3]
[348905308,1736868660782,-500.0,0.00023561,3]